[Event "Titled Tuesday Blitz August 24 2021"]
[White "Woodward, Andy"]
[Black "Khusnutdinov, Rustam"]
[WhiteFideId "30953499"]
[BlackFideId "13701703"]
[WhiteElo "2137"]
[BlackElo "2571"]
[Result "0-1"]
[Round "02"]
[TimeControl "180+1"]
[Date "2021.08.24"]
[WhiteClock "0:00:02"]
[BlackClock "0:00:53"]

1. d4 {[%clk 0:03:00]}  d5 {[%clk 0:02:59]} 2. c4 {[%clk 0:03:00]}  e6 {[%clk 0:02:59]} 3. Nc3 {[%clk 0:03:00]}  a6 {[%clk 0:02:59]} 4. cxd5 {[%clk 0:03:00]}  exd5 {[%clk 0:02:59]} 5. Bf4 {[%clk 0:03:00]}  Nf6 {[%clk 0:02:59]} 6. e3 {[%clk 0:03:00]}  c5 {[%clk 0:02:59]} 7. dxc5 {[%clk 0:02:57]}  Bxc5 {[%clk 0:03:00]} 8. Nf3 {[%clk 0:02:58]}  Nc6 {[%clk 0:03:01]} 9. Bd3 {[%clk 0:02:58]}  O-O {[%clk 0:02:55]} 10. O-O {[%clk 0:02:58]}  Bg4 {[%clk 0:02:55]} 11. Be2 {[%clk 0:02:56]}  Re8 {[%clk 0:02:52]} 12. h3 {[%clk 0:02:56]}  Bh5 {[%clk 0:02:52]} 13. Nd4 {[%clk 0:02:55]}  Bxd4 {[%clk 0:02:41]} 14. Bxh5 {[%clk 0:02:44]}  Bxc3 {[%clk 0:02:03]} 15. bxc3 {[%clk 0:02:42]}  Rc8 {[%clk 0:02:04]} 16. Bf3 {[%clk 0:02:37]}  Ne5 {[%clk 0:02:03]} 17. Bxe5 {[%clk 0:02:16]}  Rxe5 {[%clk 0:02:04]} 18. Qd4 {[%clk 0:02:12]}  Qe7 {[%clk 0:02:04]} 19. Rfd1 {[%clk 0:02:01]}  g6 {[%clk 0:01:55]} 20. Rab1 {[%clk 0:01:57]}  b5 {[%clk 0:01:53]} 21. a4 {[%clk 0:01:56]}  Rc4 {[%clk 0:01:52]} 22. Qb6 {[%clk 0:01:30]}  Rxa4 {[%clk 0:01:52]} 23. Ra1 {[%clk 0:01:30]}  Rxa1 {[%clk 0:01:49]} 24. Rxa1 {[%clk 0:01:31]}  Re6 {[%clk 0:01:50]} 25. Qb8+ {[%clk 0:01:31]}  Kg7 {[%clk 0:01:50]} 26. Qa8 {[%clk 0:01:31]}  Qd6 {[%clk 0:01:47]} 27. Rd1 {[%clk 0:01:27]}  Qc6 {[%clk 0:01:47]} 28. Qa7 {[%clk 0:01:18]}  Qxc3 {[%clk 0:01:37]} 29. g4 {[%clk 0:01:08]}  Ne4 {[%clk 0:01:34]} 30. Bxe4 {[%clk 0:00:38]}  dxe4 {[%clk 0:01:35]} 31. Rd7 {[%clk 0:00:36]}  Rf6 {[%clk 0:01:35]} 32. Rd1 {[%clk 0:00:30]}  Qb2 {[%clk 0:01:30]} 33. Rf1 {[%clk 0:00:29]}  Qe5 {[%clk 0:01:26]} 34. Rd1 {[%clk 0:00:24]}  h5 {[%clk 0:01:25]} 35. Rd4 {[%clk 0:00:17]}  hxg4 {[%clk 0:01:23]} 36. hxg4 {[%clk 0:00:18]}  Qe6 {[%clk 0:01:20]} 37. Kf1 {[%clk 0:00:09]}  Qxg4 {[%clk 0:01:18]} 38. Qb7 {[%clk 0:00:10]}  Qh3+ {[%clk 0:01:11]} 39. Ke1 {[%clk 0:00:10]}  Qh1+ {[%clk 0:01:11]} 40. Kd2 {[%clk 0:00:10]}  Rxf2+ {[%clk 0:01:11]} 41. Kc3 {[%clk 0:00:10]}  Qc1+ {[%clk 0:01:04]} 42. Kb4 {[%clk 0:00:10]}  Rb2+ {[%clk 0:01:01]} 43. Ka5 {[%clk 0:00:10]}  Qc5 {[%clk 0:01:01]} 44. Ra4 {[%clk 0:00:02]}  Qc3+ {[%clk 0:00:58]} 45. Kxa6 {[%clk 0:00:03]}  bxa4 {[%clk 0:00:58]} 46. Qc7 {[%clk 0:00:02]}  Qf6+ {[%clk 0:00:54]} 47. Ka7 {[%clk 0:00:02]}  a3 {[%clk 0:00:54]} 48. Qd7 {[%clk 0:00:02]}  a2 {[%clk 0:00:54]} 49. Qa4 {[%clk 0:00:01]}  a1=Q {[%clk 0:00:54]} 50. Ka8 {[%clk 0:00:02]}  Qxa4# {[%clk 0:00:53]} 0-1


[Site "https://www.chess.com"]

[Event "Titled Tuesday Blitz August 24 2021"]
[White "Yeletsky, Ivan"]
[Black "Cunha, Lucas Aguiar"]
[WhiteFideId "24180327"]
[BlackFideId "2125404"]
[WhiteElo "2831"]
[BlackElo "2551"]
[Result "0-1"]
[Round "02"]
[TimeControl "180+1"]
[Date "2021.08.24"]
[WhiteClock "0:00:01"]
[BlackClock "0:00:54"]

1. c4 {[%clk 0:03:00]}  e6 {[%clk 0:02:59]} 2. Nc3 {[%clk 0:02:59]}  Nf6 {[%clk 0:02:59]} 3. g3 {[%clk 0:02:56]}  d5 {[%clk 0:02:59]} 4. Bg2 {[%clk 0:02:57]}  d4 {[%clk 0:02:59]} 5. Ne4 {[%clk 0:02:56]}  Nfd7 {[%clk 0:02:52]} 6. d3 {[%clk 0:02:52]}  c5 {[%clk 0:02:52]} 7. e3 {[%clk 0:02:42]}  Nc6 {[%clk 0:02:52]} 8. Ne2 {[%clk 0:02:40]}  Be7 {[%clk 0:02:49]} 9. exd4 {[%clk 0:02:39]}  cxd4 {[%clk 0:02:50]} 10. O-O {[%clk 0:02:38]}  O-O {[%clk 0:02:48]} 11. f4 {[%clk 0:02:34]}  a5 {[%clk 0:02:45]} 12. g4 {[%clk 0:02:19]}  f5 {[%clk 0:02:40]} 13. gxf5 {[%clk 0:02:17]}  exf5 {[%clk 0:02:41]} 14. Ng5 {[%clk 0:02:16]}  Nc5 {[%clk 0:02:38]} 15. Ng3 {[%clk 0:02:14]}  g6 {[%clk 0:02:32]} 16. a3 {[%clk 0:01:53]}  a4 {[%clk 0:02:30]} 17. h4 {[%clk 0:01:33]}  h6 {[%clk 0:02:27]} 18. Bd5+ {[%clk 0:01:29]}  Kg7 {[%clk 0:02:20]} 19. Nf3 {[%clk 0:01:22]}  Bxh4 {[%clk 0:02:19]} 20. Nxh4 {[%clk 0:01:07]}  Qxh4 {[%clk 0:02:20]} 21. Kg2 {[%clk 0:01:06]}  Re8 {[%clk 0:02:10]} 22. Rh1 {[%clk 0:00:58]}  Qf6 {[%clk 0:02:10]} 23. Qf3 {[%clk 0:00:39]}  Nb3 {[%clk 0:02:06]} 24. Rb1 {[%clk 0:00:38]}  Bd7 {[%clk 0:02:06]} 25. Kf2 {[%clk 0:00:30]}  Re7 {[%clk 0:01:35]} 26. Rg1 {[%clk 0:00:29]}  Kh7 {[%clk 0:01:36]} 27. Rh1 {[%clk 0:00:11]}  Rae8 {[%clk 0:01:34]} 28. Nf1 {[%clk 0:00:12]}  Kg7 {[%clk 0:01:20]} 29. Ng3 {[%clk 0:00:12]}  Re3 {[%clk 0:01:14]} 30. Bxe3 {[%clk 0:00:11]}  dxe3+ {[%clk 0:01:15]} 31. Kg2 {[%clk 0:00:11]}  Ncd4 {[%clk 0:01:15]} 32. Qf1 {[%clk 0:00:09]}  e2 {[%clk 0:01:14]} 33. Qf2 {[%clk 0:00:09]}  Qd6 {[%clk 0:01:07]} 34. Rbg1 {[%clk 0:00:05]}  Bc6 {[%clk 0:01:06]} 35. Kh2 {[%clk 0:00:05]}  Bxd5 {[%clk 0:01:04]} 36. cxd5 {[%clk 0:00:06]}  Qxd5 {[%clk 0:01:03]} 37. Kh3 {[%clk 0:00:04]}  Nf3 {[%clk 0:00:57]} 38. Nh5+ {[%clk 0:00:01]}  Kf7 {[%clk 0:00:56]} 39. Rg3 {[%clk 0:00:02]}  e1=Q {[%clk 0:00:54]} 40. Rxe1 {[%clk 0:00:01]}  Nxe1 {[%clk 0:00:54]} 0-1


[Site "https://www.chess.com"]

[Event "Titled Tuesday Blitz August 24 2021"]
[White "Zhou, Jianchao"]
[Black "Maksimovic, Bojan"]
[WhiteFideId "8603537"]
[BlackFideId "14408120"]
[WhiteElo "2462"]
[BlackElo "2439"]
[Result "0-1"]
[Round "02"]
[TimeControl "180+1"]
[Date "2021.08.24"]
[WhiteClock "0:00:01"]
[BlackClock "0:00:07"]

1. d4 {[%clk 0:03:00]}  Nf6 {[%clk 0:03:00]} 2. c4 {[%clk 0:03:00]}  a6 {[%clk 0:03:00]} 3. Nc3 {[%clk 0:02:56]}  c5 {[%clk 0:03:00]} 4. dxc5 {[%clk 0:02:57]}  e6 {[%clk 0:03:00]} 5. e4 {[%clk 0:02:47]}  Nc6 {[%clk 0:03:00]} 6. Be3 {[%clk 0:02:41]}  Qa5 {[%clk 0:02:52]} 7. Qa4 {[%clk 0:02:09]}  Ng4 {[%clk 0:02:17]} 8. Qxa5 {[%clk 0:02:06]}  Nxa5 {[%clk 0:02:16]} 9. Bf4 {[%clk 0:00:52]}  Bxc5 {[%clk 0:02:11]} 10. Nh3 {[%clk 0:00:52]}  Nc6 {[%clk 0:02:04]} 11. Be2 {[%clk 0:00:52]}  Nge5 {[%clk 0:01:45]} 12. f3 {[%clk 0:00:52]}  f6 {[%clk 0:01:37]} 13. Nf2 {[%clk 0:00:48]}  g5 {[%clk 0:01:34]} 14. Bd2 {[%clk 0:00:44]}  Ng6 {[%clk 0:01:32]} 15. Na4 {[%clk 0:00:32]}  Bd4 {[%clk 0:01:20]} 16. c5 {[%clk 0:00:30]}  Rb8 {[%clk 0:01:00]} 17. Rc1 {[%clk 0:00:29]}  b5 {[%clk 0:00:53]} 18. cxb6 {[%clk 0:00:29]}  Bxb6 {[%clk 0:00:53]} 19. Nxb6 {[%clk 0:00:29]}  Rxb6 {[%clk 0:00:54]} 20. b3 {[%clk 0:00:27]}  Rb8 {[%clk 0:00:50]} 21. Be3 {[%clk 0:00:25]}  Nce5 {[%clk 0:00:44]} 22. Nd3 {[%clk 0:00:23]}  Nxd3+ {[%clk 0:00:38]} 23. Bxd3 {[%clk 0:00:24]}  Ne5 {[%clk 0:00:38]} 24. Be2 {[%clk 0:00:24]}  Bb7 {[%clk 0:00:37]} 25. Kf2 {[%clk 0:00:23]}  Bc6 {[%clk 0:00:31]} 26. Rc5 {[%clk 0:00:20]}  h6 {[%clk 0:00:26]} 27. Rhc1 {[%clk 0:00:13]}  Ke7 {[%clk 0:00:23]} 28. Ra5 {[%clk 0:00:12]}  Bb5 {[%clk 0:00:22]} 29. Bxb5 {[%clk 0:00:08]}  axb5 {[%clk 0:00:23]} 30. Ke2 {[%clk 0:00:04]}  Rhc8 {[%clk 0:00:20]} 31. Rxc8 {[%clk 0:00:04]}  Rxc8 {[%clk 0:00:21]} 32. Kd2 {[%clk 0:00:04]}  Rb8 {[%clk 0:00:15]} 33. Bc5+ {[%clk 0:00:04]}  d6 {[%clk 0:00:11]} 34. Ra7+ {[%clk 0:00:04]}  Nd7 {[%clk 0:00:12]} 35. Bd4 {[%clk 0:00:05]}  e5 {[%clk 0:00:11]} 36. Be3 {[%clk 0:00:04]}  Ke6 {[%clk 0:00:11]} 37. Kc3 {[%clk 0:00:05]}  Rc8+ {[%clk 0:00:09]} 38. Kd3 {[%clk 0:00:04]}  Rb8 {[%clk 0:00:07]} 39. a3 {[%clk 0:00:03]}  Rc8 {[%clk 0:00:06]} 40. Rb7 {[%clk 0:00:02]}  Ra8 {[%clk 0:00:04]} 41. Rxb5 {[%clk 0:00:02]}  Rxa3 {[%clk 0:00:04]} 42. Kc3 {[%clk 0:00:02]}  Ra8 {[%clk 0:00:04]} 43. b4 {[%clk 0:00:02]}  Rc8+ {[%clk 0:00:04]} 44. Kd3 {[%clk 0:00:02]}  Ra8 {[%clk 0:00:05]} 45. Bc1 {[%clk 0:00:02]}  Ra1 {[%clk 0:00:05]} 46. Bd2 {[%clk 0:00:02]}  Ra3+ {[%clk 0:00:05]} 47. Kc2 {[%clk 0:00:02]}  f5 {[%clk 0:00:05]} 48. exf5+ {[%clk 0:00:02]}  Kxf5 {[%clk 0:00:06]} 49. Rb7 {[%clk 0:00:02]}  Ra2+ {[%clk 0:00:06]} 50. Kd3 {[%clk 0:00:02]}  Nf6 {[%clk 0:00:06]} 51. Rf7 {[%clk 0:00:01]}  Ke6 {[%clk 0:00:06]} 52. Rf8 {[%clk 0:00:02]}  Ra3+ {[%clk 0:00:06]} 53. Kc2 {[%clk 0:00:02]}  Ra2+ {[%clk 0:00:07]} 54. Kc1 {[%clk 0:00:01]}  Nd5 {[%clk 0:00:07]} 55. Rh8 {[%clk 0:00:01]}  Ra1+ {[%clk 0:00:06]} 56. Kc2 {[%clk 0:00:01]}  Rg1 {[%clk 0:00:06]} 57. Rxh6+ {[%clk 0:00:01]}  Kd7 {[%clk 0:00:07]} 58. g4 {[%clk 0:00:01]}  Rf1 {[%clk 0:00:06]} 59. Bxg5 {[%clk 0:00:01]}  Rf2+ {[%clk 0:00:07]} 0-1


[Site "https://www.chess.com"]

[Event "Titled Tuesday Blitz August 24 2021"]
[White "harlem4brew"]
[Black "Tsaruk, Maksim"]
[BlackFideId "13511173"]
[WhiteElo "2412"]
[BlackElo "2184"]
[Result "0-1"]
[Round "02"]
[TimeControl "180+1"]
[Date "2021.08.24"]
[WhiteClock "0:01:06"]
[BlackClock "0:00:38"]

1. e4 {[%clk 0:03:00]}  c5 {[%clk 0:02:56]} 2. Nf3 {[%clk 0:02:57]}  d6 {[%clk 0:02:57]} 3. d4 {[%clk 0:02:56]}  cxd4 {[%clk 0:02:58]} 4. Nxd4 {[%clk 0:02:57]}  Nf6 {[%clk 0:02:58]} 5. Nc3 {[%clk 0:02:57]}  a6 {[%clk 0:02:58]} 6. g3 {[%clk 0:02:56]}  e5 {[%clk 0:02:58]} 7. Nb3 {[%clk 0:02:54]}  Be7 {[%clk 0:02:58]} 8. Bg2 {[%clk 0:02:53]}  O-O {[%clk 0:02:59]} 9. O-O {[%clk 0:02:51]}  b5 {[%clk 0:02:59]} 10. a4 {[%clk 0:02:49]}  b4 {[%clk 0:03:00]} 11. Nd5 {[%clk 0:02:49]}  a5 {[%clk 0:03:01]} 12. Be3 {[%clk 0:02:43]}  Nxd5 {[%clk 0:02:59]} 13. exd5 {[%clk 0:02:43]}  Nd7 {[%clk 0:02:57]} 14. c4 {[%clk 0:02:42]}  bxc3 {[%clk 0:02:56]} 15. bxc3 {[%clk 0:02:42]}  Ba6 {[%clk 0:02:57]} 16. Re1 {[%clk 0:02:42]}  f5 {[%clk 0:02:51]} 17. f4 {[%clk 0:02:41]}  Bf6 {[%clk 0:02:50]} 18. fxe5 {[%clk 0:02:41]}  dxe5 {[%clk 0:02:44]} 19. Rc1 {[%clk 0:02:37]}  Rc8 {[%clk 0:02:36]} 20. d6 {[%clk 0:02:28]}  Bc4 {[%clk 0:02:21]} 21. Bd5+ {[%clk 0:02:26]}  Kh8 {[%clk 0:02:22]} 22. Bxc4 {[%clk 0:02:13]}  Rxc4 {[%clk 0:02:23]} 23. Qd5 {[%clk 0:02:13]}  Qc8 {[%clk 0:02:18]} 24. Nxa5 {[%clk 0:02:10]}  Rxc3 {[%clk 0:02:15]} 25. Nc6 {[%clk 0:02:08]}  Rxc1 {[%clk 0:01:38]} 26. Rxc1 {[%clk 0:02:07]}  f4 {[%clk 0:01:39]} 27. Nxe5 {[%clk 0:02:01]}  Qe8 {[%clk 0:01:25]} 28. gxf4 {[%clk 0:01:59]}  Bxe5 {[%clk 0:01:08]} 29. fxe5 {[%clk 0:01:58]}  Nxe5 {[%clk 0:01:09]} 30. Kh1 {[%clk 0:01:54]}  Ng4 {[%clk 0:00:48]} 31. Re1 {[%clk 0:01:24]}  Qxe3 {[%clk 0:00:36]} 32. Rxe3 {[%clk 0:01:11]}  Rf1+ {[%clk 0:00:35]} 33. Kg2 {[%clk 0:01:11]}  Nxe3+ {[%clk 0:00:36]} 34. Kg3 {[%clk 0:01:06]}  Nxd5 {[%clk 0:00:37]} 35. d7 {[%clk 0:01:06]}  Rf8 {[%clk 0:00:38]} 0-1


[Site "https://www.chess.com"]

[Event "Titled Tuesday Blitz August 24 2021"]
[White "sganerdene"]
[Black "Labussiere, Yago"]
[BlackFideId "2186969"]
[WhiteElo "2637"]
[BlackElo "1857"]
[Result "1-0"]
[Round "02"]
[TimeControl "180+1"]
[Date "2021.08.24"]
[WhiteClock "0:00:50"]
[BlackClock "0:00:04"]

1. e4 {[%clk 0:02:59]}  c5 {[%clk 0:02:59]} 2. Nf3 {[%clk 0:02:59]}  d6 {[%clk 0:02:58]} 3. d4 {[%clk 0:03:00]}  cxd4 {[%clk 0:02:59]} 4. Nxd4 {[%clk 0:03:01]}  Nf6 {[%clk 0:03:00]} 5. Nc3 {[%clk 0:03:01]}  Nc6 {[%clk 0:03:00]} 6. Bg5 {[%clk 0:03:00]}  e6 {[%clk 0:03:01]} 7. Qd2 {[%clk 0:03:00]}  Qb6 {[%clk 0:03:01]} 8. Nb3 {[%clk 0:03:00]}  Be7 {[%clk 0:03:01]} 9. O-O-O {[%clk 0:03:00]}  a6 {[%clk 0:03:02]} 10. f4 {[%clk 0:02:59]}  O-O {[%clk 0:03:02]} 11. Kb1 {[%clk 0:02:59]}  Rd8 {[%clk 0:03:00]} 12. g4 {[%clk 0:02:56]}  d5 {[%clk 0:02:45]} 13. Bxf6 {[%clk 0:02:32]}  Bxf6 {[%clk 0:02:45]} 14. e5 {[%clk 0:02:28]}  Be7 {[%clk 0:02:28]} 15. h4 {[%clk 0:02:28]}  a5 {[%clk 0:01:56]} 16. Na4 {[%clk 0:02:20]}  Qc7 {[%clk 0:01:45]} 17. h5 {[%clk 0:02:14]}  Bd7 {[%clk 0:01:07]} 18. Qe3 {[%clk 0:01:38]}  Nb4 {[%clk 0:00:33]} 19. Nc3 {[%clk 0:01:38]}  a4 {[%clk 0:00:33]} 20. Nd4 {[%clk 0:01:38]}  a3 {[%clk 0:00:31]} 21. b3 {[%clk 0:01:30]}  Rdc8 {[%clk 0:00:30]} 22. Rh3 {[%clk 0:01:29]}  Nc6 {[%clk 0:00:26]} 23. Ndb5 {[%clk 0:01:28]}  Qa5 {[%clk 0:00:25]} 24. Na4 {[%clk 0:01:26]}  d4 {[%clk 0:00:10]} 25. Qe4 {[%clk 0:01:20]}  Nb4 {[%clk 0:00:06]} 26. c4 {[%clk 0:00:57]}  Bxb5 {[%clk 0:00:05]} 27. cxb5 {[%clk 0:00:55]}  Nc2 {[%clk 0:00:04]} 28. Bd3 {[%clk 0:00:50]}  Ne3 {[%clk 0:00:04]} 29. Qxh7+ {[%clk 0:00:50]} 1-0


[Site "https://www.chess.com"]

[Event "Titled Tuesday Blitz August 24 2021"]
[White "Aradhya, Garg"]
[Black "MATHEUSMDR2005"]
[WhiteFideId "25006746"]
[WhiteElo "2146"]
[BlackElo "2453"]
[Result "1-0"]
[Round "03"]
[TimeControl "180+1"]
[Date "2021.08.24"]
[WhiteClock "0:01:41"]
[BlackClock "0:00:01"]

1. d4 {[%clk 0:03:00]}  e6 {[%clk 0:02:59]} 2. c4 {[%clk 0:03:00]}  d5 {[%clk 0:03:00]} 3. Nc3 {[%clk 0:03:00]}  Nf6 {[%clk 0:02:58]} 4. cxd5 {[%clk 0:03:00]}  exd5 {[%clk 0:02:58]} 5. Bg5 {[%clk 0:03:00]}  Be7 {[%clk 0:02:56]} 6. e3 {[%clk 0:03:00]}  O-O {[%clk 0:02:56]} 7. Bd3 {[%clk 0:03:00]}  c6 {[%clk 0:02:55]} 8. Nge2 {[%clk 0:02:51]}  Nbd7 {[%clk 0:02:54]} 9. Qc2 {[%clk 0:02:46]}  Re8 {[%clk 0:02:51]} 10. O-O {[%clk 0:02:39]}  Nf8 {[%clk 0:02:50]} 11. Rae1 {[%clk 0:02:34]}  g6 {[%clk 0:02:48]} 12. Bh4 {[%clk 0:02:24]}  Ne6 {[%clk 0:02:43]} 13. f3 {[%clk 0:02:24]}  b5 {[%clk 0:02:35]} 14. Kh1 {[%clk 0:02:18]}  Bb7 {[%clk 0:02:33]} 15. Bf2 {[%clk 0:02:02]}  Rc8 {[%clk 0:02:31]} 16. h3 {[%clk 0:01:57]}  b4 {[%clk 0:02:31]} 17. Na4 {[%clk 0:01:57]}  c5 {[%clk 0:02:31]} 18. dxc5 {[%clk 0:01:57]}  Nxc5 {[%clk 0:02:31]} 19. Nxc5 {[%clk 0:01:56]}  Bxc5 {[%clk 0:02:31]} 20. Qd2 {[%clk 0:01:55]}  Qb6 {[%clk 0:02:14]} 21. Nd4 {[%clk 0:01:54]}  Bxd4 {[%clk 0:02:12]} 22. exd4 {[%clk 0:01:54]}  Rxe1 {[%clk 0:02:13]} 23. Rxe1 {[%clk 0:01:54]}  Re8 {[%clk 0:02:13]} 24. g4 {[%clk 0:01:54]}  Rxe1+ {[%clk 0:02:10]} 25. Qxe1 {[%clk 0:01:54]}  Qe6 {[%clk 0:01:54]} 26. Qxb4 {[%clk 0:01:53]}  Bc6 {[%clk 0:01:47]} 27. Qb8+ {[%clk 0:01:51]}  Kg7 {[%clk 0:01:47]} 28. Qe5 {[%clk 0:01:51]}  Qxe5 {[%clk 0:01:35]} 29. dxe5 {[%clk 0:01:51]}  Nd7 {[%clk 0:01:36]} 30. f4 {[%clk 0:01:51]}  a5 {[%clk 0:01:32]} 31. Kg1 {[%clk 0:01:51]}  g5 {[%clk 0:01:28]} 32. Bd4 {[%clk 0:01:50]}  h6 {[%clk 0:00:39]} 33. e6+ {[%clk 0:01:46]}  Nf6 {[%clk 0:00:38]} 34. fxg5 {[%clk 0:01:45]}  hxg5 {[%clk 0:00:39]} 35. e7 {[%clk 0:01:45]}  a4 {[%clk 0:00:22]} 36. h4 {[%clk 0:01:44]}  gxh4 {[%clk 0:00:16]} 37. g5 {[%clk 0:01:44]}  h3 {[%clk 0:00:13]} 38. Kh2 {[%clk 0:01:41]}  Bd7 {[%clk 0:00:08]} 39. Bxf6+ {[%clk 0:01:41]}  Kg8 {[%clk 0:00:08]} 40. Bf5 {[%clk 0:01:41]}  Be8 {[%clk 0:00:07]} 41. Kxh3 {[%clk 0:01:41]}  a3 {[%clk 0:00:03]} 42. b4 {[%clk 0:01:40]}  d4 {[%clk 0:00:03]} 43. Kh4 {[%clk 0:01:40]}  d3 {[%clk 0:00:04]} 44. Kh5 {[%clk 0:01:41]}  d2 {[%clk 0:00:04]} 45. Kh6 {[%clk 0:01:41]}  d1=Q {[%clk 0:00:01]} 46. Bh7# {[%clk 0:01:41]} 1-0


[Site "https://www.chess.com"]

[Event "Titled Tuesday Blitz August 24 2021"]
[White "Astafurov, Arseniy"]
[Black "Starozhilov, Leonid"]
[WhiteFideId "24175218"]
[BlackFideId "14106752"]
[WhiteElo "2163"]
[BlackElo "2414"]
[Result "1/2-1/2"]
[Round "03"]
[TimeControl "180+1"]
[Date "2021.08.24"]
[WhiteClock "0:00:09"]
[BlackClock "0:00:31"]

1. c4 {[%clk 0:03:00]}  Nf6 {[%clk 0:02:59]} 2. Nc3 {[%clk 0:02:59]}  g6 {[%clk 0:03:00]} 3. Nf3 {[%clk 0:02:59]}  d6 {[%clk 0:03:00]} 4. g3 {[%clk 0:03:00]}  Bg7 {[%clk 0:03:01]} 5. d4 {[%clk 0:03:00]}  O-O {[%clk 0:03:02]} 6. Bg2 {[%clk 0:03:01]}  c6 {[%clk 0:03:03]} 7. O-O {[%clk 0:03:02]}  Bf5 {[%clk 0:03:03]} 8. Qb3 {[%clk 0:03:00]}  Qb6 {[%clk 0:03:03]} 9. Re1 {[%clk 0:02:57]}  Na6 {[%clk 0:03:02]} 10. h3 {[%clk 0:02:51]}  Qxb3 {[%clk 0:02:54]} 11. axb3 {[%clk 0:02:50]}  Nb4 {[%clk 0:02:55]} 12. Ra4 {[%clk 0:02:32]}  a5 {[%clk 0:02:41]} 13. e4 {[%clk 0:02:32]}  Bd7 {[%clk 0:02:29]} 14. Bd2 {[%clk 0:01:56]}  b5 {[%clk 0:02:27]} 15. cxb5 {[%clk 0:01:38]}  cxb5 {[%clk 0:02:28]} 16. Rxb4 {[%clk 0:01:38]}  axb4 {[%clk 0:02:27]} 17. Nd5 {[%clk 0:01:17]}  Nxd5 {[%clk 0:02:20]} 18. exd5 {[%clk 0:01:18]}  Ra2 {[%clk 0:02:21]} 19. Rxe7 {[%clk 0:01:16]}  Bf5 {[%clk 0:02:09]} 20. Bxb4 {[%clk 0:01:13]}  Rxb2 {[%clk 0:02:09]} 21. Bxd6 {[%clk 0:01:13]}  Rxb3 {[%clk 0:02:00]} 22. Rb7 {[%clk 0:01:05]}  Rc8 {[%clk 0:01:13]} 23. Bc5 {[%clk 0:00:52]}  Be4 {[%clk 0:00:53]} 24. Ng5 {[%clk 0:00:48]}  Bxg2 {[%clk 0:00:45]} 25. Kxg2 {[%clk 0:00:49]}  Rd3 {[%clk 0:00:43]} 26. Nxf7 {[%clk 0:00:29]}  Bxd4 {[%clk 0:00:30]} 27. Nh6+ {[%clk 0:00:28]}  Kh8 {[%clk 0:00:30]} 28. Nf7+ {[%clk 0:00:20]}  Kg8 {[%clk 0:00:30]} 29. Nh6+ {[%clk 0:00:15]}  Kh8 {[%clk 0:00:30]} 30. Nf7+ {[%clk 0:00:09]}  Kg8 {[%clk 0:00:31]} 1/2-1/2


[Site "https://www.chess.com"]

[Event "Titled Tuesday Blitz August 24 2021"]
[White "Bortnyk, Olexandr"]
[Black "Zhang, Derek"]
[WhiteFideId "14120828"]
[BlackFideId "2087871"]
[WhiteElo "2723"]
[BlackElo "2085"]
[Result "1-0"]
[Round "03"]
[TimeControl "180+1"]
[Date "2021.08.24"]
[WhiteClock "0:01:14"]
[BlackClock "0:00:33"]

1. d4 {[%clk 0:03:00]}  d6 {[%clk 0:02:59]} 2. Nc3 {[%clk 0:02:59]}  e5 {[%clk 0:02:59]} 3. e4 {[%clk 0:02:56]}  exd4 {[%clk 0:02:54]} 4. Qxd4 {[%clk 0:02:57]}  Nc6 {[%clk 0:02:55]} 5. Qe3 {[%clk 0:02:49]}  g6 {[%clk 0:02:54]} 6. Bc4 {[%clk 0:02:48]}  Bg7 {[%clk 0:02:53]} 7. Nf3 {[%clk 0:02:48]}  Be6 {[%clk 0:02:53]} 8. Nd5 {[%clk 0:02:40]}  Ne5 {[%clk 0:02:42]} 9. Nxe5 {[%clk 0:02:39]}  dxe5 {[%clk 0:02:42]} 10. Qb3 {[%clk 0:02:15]}  c6 {[%clk 0:02:26]} 11. Ne3 {[%clk 0:02:15]}  Bxc4 {[%clk 0:02:13]} 12. Nxc4 {[%clk 0:02:15]}  Qc7 {[%clk 0:01:54]} 13. Qxb7 {[%clk 0:02:11]}  Qxb7 {[%clk 0:01:49]} 14. Nd6+ {[%clk 0:02:11]}  Ke7 {[%clk 0:01:46]} 15. Nxb7 {[%clk 0:02:12]}  Nf6 {[%clk 0:01:45]} 16. f3 {[%clk 0:02:12]}  Nd7 {[%clk 0:01:42]} 17. Na5 {[%clk 0:02:09]}  Kd6 {[%clk 0:01:41]} 18. Be3 {[%clk 0:02:07]}  Kc7 {[%clk 0:01:41]} 19. O-O-O {[%clk 0:02:06]}  Bf8 {[%clk 0:01:37]} 20. a3 {[%clk 0:01:59]}  Be7 {[%clk 0:01:33]} 21. Rd3 {[%clk 0:01:59]}  Rhd8 {[%clk 0:01:25]} 22. Rc3 {[%clk 0:01:50]}  c5 {[%clk 0:01:06]} 23. Rd1 {[%clk 0:01:43]}  Rac8 {[%clk 0:01:02]} 24. Rd5 {[%clk 0:01:27]}  f6 {[%clk 0:00:57]} 25. b4 {[%clk 0:01:19]}  Nb6 {[%clk 0:00:45]} 26. Rxd8 {[%clk 0:01:16]}  Rxd8 {[%clk 0:00:46]} 27. Bxc5 {[%clk 0:01:13]}  Na4 {[%clk 0:00:42]} 28. Bb6+ {[%clk 0:01:13]}  Kxb6 {[%clk 0:00:33]} 29. Rc6+ {[%clk 0:01:13]}  Kb5 {[%clk 0:00:33]} 30. c4# {[%clk 0:01:14]} 1-0


[Site "https://www.chess.com"]

[Event "Titled Tuesday Blitz August 24 2021"]
[White "Bryakin, Mikhail"]
[Black "Khodzhamkuliev, Bahadur"]
[WhiteFideId "4165314"]
[BlackFideId "24135046"]
[WhiteElo "2336"]
[BlackElo "2130"]
[Result "1/2-1/2"]
[Round "03"]
[TimeControl "180+1"]
[Date "2021.08.24"]
[WhiteClock "0:02:36"]
[BlackClock "0:02:40"]

1. e4 {[%clk 0:02:59]}  c5 {[%clk 0:03:00]} 2. Nf3 {[%clk 0:02:59]}  d6 {[%clk 0:03:00]} 3. d4 {[%clk 0:03:00]}  cxd4 {[%clk 0:03:01]} 4. Nxd4 {[%clk 0:03:00]}  Nf6 {[%clk 0:03:01]} 5. Nc3 {[%clk 0:03:00]}  g6 {[%clk 0:03:02]} 6. Bg5 {[%clk 0:02:59]}  Bg7 {[%clk 0:03:01]} 7. Qd2 {[%clk 0:02:59]}  O-O {[%clk 0:02:59]} 8. O-O-O {[%clk 0:03:00]}  Nc6 {[%clk 0:02:59]} 9. Kb1 {[%clk 0:03:00]}  Nxd4 {[%clk 0:02:58]} 10. Qxd4 {[%clk 0:02:59]}  Qa5 {[%clk 0:02:54]} 11. h4 {[%clk 0:02:56]}  b5 {[%clk 0:02:53]} 12. Nxb5 {[%clk 0:02:36]}  Be6 {[%clk 0:02:40]} 1/2-1/2


[Site "https://www.chess.com"]

[Event "Titled Tuesday Blitz August 24 2021"]
[White "Costachi, Mihnea"]
[Black "Vasli, Aref"]
[WhiteFideId "1217518"]
[BlackFideId "417521"]
[WhiteElo "2482"]
[BlackElo "2257"]
[Result "1-0"]
[Round "03"]
[TimeControl "180+1"]
[Date "2021.08.24"]
[WhiteClock "0:02:19"]
[BlackClock "0:01:13"]

1. d4 {[%clk 0:03:00]}  Nf6 {[%clk 0:02:59]} 2. c4 {[%clk 0:03:00]}  e6 {[%clk 0:02:59]} 3. Nf3 {[%clk 0:03:00]}  c5 {[%clk 0:02:59]} 4. d5 {[%clk 0:03:00]}  exd5 {[%clk 0:03:00]} 5. cxd5 {[%clk 0:03:01]}  d6 {[%clk 0:03:00]} 6. Nc3 {[%clk 0:03:02]}  g6 {[%clk 0:03:01]} 7. Nd2 {[%clk 0:03:03]}  Bg7 {[%clk 0:03:01]} 8. e4 {[%clk 0:03:03]}  O-O {[%clk 0:03:01]} 9. Be2 {[%clk 0:03:04]}  Re8 {[%clk 0:02:51]} 10. O-O {[%clk 0:03:04]}  Nbd7 {[%clk 0:02:51]} 11. h3 {[%clk 0:03:04]}  a6 {[%clk 0:02:51]} 12. a4 {[%clk 0:03:04]}  Rb8 {[%clk 0:02:48]} 13. Re1 {[%clk 0:03:00]}  Ne5 {[%clk 0:02:46]} 14. f4 {[%clk 0:03:00]}  Ned7 {[%clk 0:02:43]} 15. Kh1 {[%clk 0:02:43]}  Qe7 {[%clk 0:02:32]} 16. Bf3 {[%clk 0:02:38]}  b5 {[%clk 0:02:30]} 17. axb5 {[%clk 0:02:38]}  axb5 {[%clk 0:02:31]} 18. Ra7 {[%clk 0:02:39]}  b4 {[%clk 0:02:29]} 19. Ne2 {[%clk 0:02:35]}  Rb7 {[%clk 0:02:24]} 20. Rxb7 {[%clk 0:02:31]}  Bxb7 {[%clk 0:02:24]} 21. e5 {[%clk 0:02:25]}  Nxe5 {[%clk 0:01:14]} 22. fxe5 {[%clk 0:02:23]}  Qxe5 {[%clk 0:01:14]} 23. Nc4 {[%clk 0:02:21]}  Qg3 {[%clk 0:01:13]} 24. Nxg3 {[%clk 0:02:19]} 1-0


[Site "https://www.chess.com"]